[Event "EYCC Girls-U12 2019"]
[Site "Bratislava"]
[Date "2019.08.08"]
[Round "7.2"]
[White "Manko, Mariya"]
[Black "Musabayeva, Diana"]
[Result "1/2-1/2"]
[ECO "A39"]
[WhiteElo "1807"]
[BlackElo "1679"]
[Annotator "NA"]
[PlyCount "52"]
[EventDate "2019.08.02"]
[EventType "swiss"]
[EventCountry "SVK"]
[SourceTitle "playchess.com"]
[Source "ChessBase"]
[SourceQuality "1"]
[TimeControl "40/5400+30:1800+30"]

1. Nf3 {[%emt 0:00:00]} Nf6 {[%emt 0:00:00]} 2. c4 {[%emt 0:00:00]} c5 {[%emt 0:00:00]} 3. g3 {[%emt 0:00:20]} g6 {[%emt 0:00:00]} 4. Bg2 {[%emt 0:00:09]} Bg7 {[%emt 0:00:00]} 5. Nc3 {[%emt 0:00:21]} Nc6 {[%emt 0:01:06]} 6. O-O {[%emt 0:00:18]} O-O {[%emt 0:00:05]} 7. d4 {[%emt 0:00:32]} cxd4 {[%emt 0:00:36]} 8. Nxd4 {[%emt 0:00:14]} Nxd4 {[%emt 0:01:12]} 9. Qxd4 {[%emt 0:00:09]} d6 {[%emt 0:00:17]} 10. Qd3 {[%emt 0:02:57]} Rb8 {[%emt 0:15:56]} 11. Bd2 {[%emt 0:01:34]} Be6 {[%emt 0:08:40]} 12. Rac1 {[%emt 0:06:21]} Qd7 {[%emt 0:07:40]} 13. Rfd1 {[%emt 0:10:13]} Rfc8 {[%emt 0:07:43]} 14. b3 {[%emt 0:01:20]} a6 {[%emt 0:01:04]} 15. e4 {[%emt 0:06:06]} b5 {[%emt 0:04:58]} 16. cxb5 {[%emt 0:08:19]} axb5 {[%emt 0:00:11]} 17. Bf1 {[%emt 0:01:30]} b4 {[%emt 0:11:20]} 18. Nd5 {[%emt 0:05:26]} Nxd5 {[%emt 0:06:22]} 19. exd5 {[%emt 0:00:18]} Bf5 {[%emt 0:00:30]} 20. Rxc8+ {[%emt 0:00:13]} Rxc8 {[%emt 0:04:46]} 21. Qa6 {[%emt 0:04:28]} Bc3 {[%emt 0:02:42]} 22. Bb5 {[%emt 0:02:37]} Qc7 {[%emt 0:06:53]} 23. Rc1 {[%emt 0:05:34]} Qb8 {[%emt 0:02:27]} 24. Bxc3 {[%emt 0:12:50]} Rxc3 {[%emt 0:01:11]} 25. Re1 {[%emt 0:01:39]} Kf8 {[%emt 0:03:09]} 26. Bc6 {[%emt 0:04:40]} Bd3 {[%emt 0:01:09]} 1/2-1/2

[Event "EYCC Girls-U12 2019"]
[Site "Bratislava"]
[Date "2019.08.08"]
[Round "7.3"]
[White "Zhapova, Yana"]
[Black "Karmanova, Olga Dm."]
[Result "1-0"]
[ECO "B10"]
[WhiteElo "1809"]
[BlackElo "1838"]
[Annotator "NA"]
[PlyCount "81"]
[EventDate "2019.08.02"]
[EventType "swiss"]
[EventCountry "SVK"]
[SourceTitle "playchess.com"]
[Source "ChessBase"]
[SourceQuality "1"]
[TimeControl "40/5400+30:1800+30"]

1. e4 {[%emt 0:00:00]} c6 {[%emt 0:00:00]} 2. Nc3 {[%emt 0:01:37]} d5 {[%emt 0:00:00]} 3. Nf3 {[%emt 0:00:59]} Nf6 {[%emt 0:00:22]} 4. e5 {[%emt 0:10:36]} Ne4 {[%emt 0:00:24]} 5. Nxe4 {[%emt 0:09:42]} dxe4 {[%emt 0:00:12]} 6. Ng5 {[%emt 0:00:17]} Qd5 {[%emt 0:02:45]} 7. Qe2 {[%emt 0:09:12]} Qxe5 {[%emt 0:05:50]} 8. Nxe4 {[%emt 0:00:16]} Bf5 {[%emt 0:00:43]} 9. d3 {[%emt 0:01:23]} e6 {[%emt 0:05:26]} 10. g3 {[%emt 0:04:54]} Nd7 {[%emt 0:06:21]} 11. Bg2 {[%emt 0:02:54]} Be7 {[%emt 0:02:34]} 12. O-O {[%emt 0:00:52]} O-O {[%emt 0:06:18]} 13. Bf4 {[%emt 0:03:01]} Qa5 {[%emt 0:04:57]} 14. Nd6 {[%emt 0:03:52]} Bxd6 {[%emt 0:03:22]} 15. Bxd6 {[%emt 0:00:11]} Rfe8 {[%emt 0:00:30]} 16. Rfe1 {[%emt 0:04:12]} Rad8 {[%emt 0:04:18]} 17. a4 {[%emt 0:08:27]} c5 {[%emt 0:08:10]} 18. Bf4 {[%emt 0:04:52]} e5 {[%emt 0:06:48]} 19. Bd2 {[%emt 0:02:07]} Qc7 {[%emt 0:01:12]} 20. Bc3 {[%emt 0:05:15]} b6 {[%emt 0:05:06]} 21. Qf3 {[%emt 0:04:58]} Be6 {[%emt 0:01:41]} 22. h4 {[%emt 0:00:49]} f6 {[%emt 0:01:59]} 23. g4 {[%emt 0:02:48]} Nf8 {[%emt 0:02:53]} 24. g5 {[%emt 0:01:34]} Qf7 {[%emt 0:06:29]} 25. Qg3 {[%emt 0:01:01]} Kh8 {[%emt 0:00:05]} 26. gxf6 {[%emt 0:00:16]} gxf6 {[%emt 0:00:52]} 27. Rxe5 {[%emt 0:07:35]} Nd7 {[%emt 0:02:08]} 28. Rg5 {[%emt 0:01:29]} Rg8 {[%emt 0:01:01]} 29. Qf4 {[%emt 0:00:45]} Rg7 {[%emt 0:05:59]} 30. Rg3 {[%emt 0:01:28]} Rdg8 {[%emt 0:00:33]} 31. Re1 {[%emt 0:00:22]} Rg4 {[%emt 0:02:02]} 32. Qd6 {[%emt 0:01:37]} Nf8 {[%emt 0:02:55]} 33. Ree3 {[%emt 0:01:36]} Rxa4 {[%emt 0:04:33]} 34. Ref3 {[%emt 0:02:33]} Nd7 {[%emt 0:00:56]} 35. Re3 {[%emt 0:01:12]} Nf8 {[%emt 0:00:37]} 36. Be4 {[%emt 0:01:18]} Ra1+ {[%emt 0:02:38]} 37. Kh2 {[%emt 0:00:29]} Rg7 {[%emt 0:03:10]} 38. Ref3 {[%emt 0:00:59]} Nd7 {[%emt 0:00:39]} 39. Bc6 {[%emt 0:00:52]} Rg6 {[%emt 0:01:57]} 40. Bxd7 {[%emt 0:00:00]} Qxd7 {[%emt 0:00:00]} 41. Qf8+ {[%emt 0:00:47]} 1-0

[Event "EYCC Girls-U12 2019"]
[Site "Bratislava"]
[Date "2019.08.08"]
[Round "7.4"]
[White "Van, Foreest Machteld"]
[Black "Huang, Wendy"]
[Result "0-1"]
[ECO "B90"]
[WhiteElo "2186"]
[BlackElo "1784"]
[Annotator "NA"]
[PlyCount "84"]
[EventDate "2019.08.02"]
[EventType "swiss"]
[EventCountry "SVK"]
[SourceTitle "playchess.com"]
[Source "ChessBase"]
[SourceQuality "1"]
[TimeControl "40/5400+30:1800+30"]

1. e4 {[%emt 0:00:00]} c5 {[%emt 0:00:00]} 2. Nf3 {[%emt 0:00:00]} d6 {[%emt 0:00:00]} 3. d4 {[%emt 0:00:00]} cxd4 {[%emt 0:00:00]} 4. Nxd4 {[%emt 0:00:00]} Nf6 {[%emt 0:00:04]} 5. Nc3 {[%emt 0:00:00]} a6 {[%emt 0:00:06]} 6. f3 {[%emt 0:00:00]} e5 {[%emt 0:01:10]} 7. Nb3 {[%emt 0:00:00]} Be6 {[%emt 0:00:58]} 8. Be3 {[%emt 0:00:06]} Be7 {[%emt 0:00:25]} 9. Qd2 {[%emt 0:00:10]} Nbd7 {[%emt 0:00:38]} 10. O-O-O {[%emt 0:06:42]} O-O {[%emt 0:01:31]} 11. Kb1 {[%emt 0:01:53]} b5 {[%emt 0:02:10]} 12. g4 {[%emt 0:08:41]} b4 {[%emt 0:06:48]} 13. Na4 {[%emt 0:04:23]} a5 {[%emt 0:07:15]} 14. Qf2 {[%emt 0:06:24]} Qc7 {[%emt 0:06:00]} 15. g5 {[%emt 0:17:48]} Nh5 {[%emt 0:06:34]} 16. Bb5 {[%emt 0:01:52]} Rab8 {[%emt 0:12:24]} 17. Bxd7 {[%emt 0:04:45]} Qxd7 {[%emt 0:07:37]} 18. Nb6 {[%emt 0:09:38]} Qb5 {[%emt 0:07:32]} 19. Nd5 {[%emt 0:01:05]} Bd8 {[%emt 0:04:43]} 20. Qh4 {[%emt 0:01:42]} g6 {[%emt 0:02:45]} 21. Nf6+ {[%emt 0:06:30]} Bxf6 {[%emt 0:02:33]} 22. gxf6 {[%emt 0:00:04]} a4 {[%emt 0:01:16]} 23. Nc1 {[%emt 0:09:52]} Qc4 {[%emt 0:09:05]} 24. b3 {[%emt 0:04:01]} Qc6 {[%emt 0:03:55]} 25. Rd2 {[%emt 0:02:55]} Rfc8 {[%emt 0:04:30]} 26. Rg1 {[%emt 0:04:53]} Kh8 {[%emt 0:02:47]} 27. Bh6 {[%emt 0:00:48]} axb3 {[%emt 0:02:38]} 28. cxb3 {[%emt 0:00:28]} Rg8 {[%emt 0:03:46]} 29. Rc2 {[%emt 0:01:40]} Qb6 {[%emt 0:00:32]} 30. Rgg2 {[%emt 0:01:10]} Rbc8 {[%emt 0:00:42]} 31. f4 {[%emt 0:02:16]} exf4 {[%emt 0:00:54]} 32. Bxf4 {[%emt 0:01:19]} d5 {[%emt 0:01:02]} 33. Bh6 {[%emt 0:03:57]} dxe4 {[%emt 0:01:00]} 34. Qg5 {[%emt 0:01:09]} Bf5 {[%emt 0:01:25]} 35. Qe3 {[%emt 0:00:40]} Qxf6 {[%emt 0:00:45]} 36. Bg5 {[%emt 0:00:27]} Qg7 {[%emt 0:01:16]} 37. Rxc8 {[%emt 0:00:30]} Rxc8 {[%emt 0:00:14]} 38. Ne2 {[%emt 0:00:07]} f6 {[%emt 0:00:58]} 39. Bf4 {[%emt 0:00:51]} Qd7 {[%emt 0:00:31]} 40. Kb2 {[%emt 0:00:00]} Qd3 {[%emt 0:00:00]} 41. Nc1 {[%emt 0:15:21]} Qc3+ {[%emt 0:05:27]} 42. Kb1 {[%emt 0:00:14]} Nxf4 {[%emt 0:00:47]} 0-1

[Event "EYCC Girls-U12 2019"]
[Site "Bratislava"]
[Date "2019.08.08"]
[Round "7.5"]
[White "Vlasova, Olesia"]
[Black "Gadasi, Noam"]
[Result "1/2-1/2"]
[ECO "A05"]
[WhiteElo "1799"]
[BlackElo "1585"]
[Annotator "NA"]
[PlyCount "90"]
[EventDate "2019.08.02"]
[EventType "swiss"]
[EventCountry "SVK"]
[SourceTitle "playchess.com"]
[Source "ChessBase"]
[SourceQuality "1"]
[TimeControl "40/5400+30:1800+30"]

1. Nf3 {[%emt 0:00:00]} Nf6 {[%emt 0:00:00]} 2. c4 {[%emt 0:00:00]} e6 {[%emt 0:00:00]} 3. g3 {[%emt 0:00:00]} b6 {[%emt 0:00:05]} 4. Bg2 {[%emt 0:00:25]} Bb7 {[%emt 0:00:18]} 5. O-O {[%emt 0:00:12]} Be7 {[%emt 0:00:18]} 6. Nc3 {[%emt 0:00:10]} O-O {[%emt 0:00:39]} 7. b3 {[%emt 0:00:08]} d5 {[%emt 0:03:05]} 8. e3 {[%emt 0:00:18]} c5 {[%emt 0:02:03]} 9. Bb2 {[%emt 0:00:15]} Nbd7 {[%emt 0:02:07]} 10. Qe2 {[%emt 0:00:12]} Rc8 {[%emt 0:01:34]} 11. Rfd1 {[%emt 0:00:15]} Qc7 {[%emt 0:02:22]} 12. Rac1 {[%emt 0:00:16]} Qb8 {[%emt 0:02:38]} 13. cxd5 {[%emt 0:01:25]} Nxd5 {[%emt 0:01:43]} 14. Nxd5 {[%emt 0:08:44]} Bxd5 {[%emt 0:00:38]} 15. e4 {[%emt 0:01:44]} Bb7 {[%emt 0:01:11]} 16. d4 {[%emt 0:00:27]} Qa8 {[%emt 0:05:35]} 17. Nd2 {[%emt 0:37:24]} cxd4 {[%emt 0:24:14]} 18. Bxd4 {[%emt 0:00:29]} Bf6 {[%emt 0:01:14]} 19. Bxf6 {[%emt 0:07:01]} Nxf6 {[%emt 0:00:15]} 20. Bf3 {[%emt 0:00:56]} h6 {[%emt 0:08:39]} 21. Qe3 {[%emt 0:04:55]} Rfd8 {[%emt 0:04:50]} 22. Re1 {[%emt 0:02:07]} Rxc1 {[%emt 0:07:44]} 23. Rxc1 {[%emt 0:00:01]} Rc8 {[%emt 0:00:30]} 24. Rxc8+ {[%emt 0:02:02]} Qxc8 {[%emt 0:00:11]} 25. Nc4 {[%emt 0:01:11]} Qc6 {[%emt 0:09:47]} 26. Nd2 {[%emt 0:05:35]} Qc2 {[%emt 0:03:02]} 27. a4 {[%emt 0:01:01]} Bc6 {[%emt 0:04:33]} 28. Kg2 {[%emt 0:01:31]} Nd7 {[%emt 0:02:56]} 29. Nc4 {[%emt 0:05:43]} Nc5 {[%emt 0:01:44]} 30. Nd2 {[%emt 0:01:22]} e5 {[%emt 0:01:38]} 31. h4 {[%emt 0:01:06]} Kh7 {[%emt 0:02:42]} 32. Bg4 {[%emt 0:06:10]} g6 {[%emt 0:00:45]} 33. Bf3 {[%emt 0:00:43]} Kg7 {[%emt 0:00:32]} 34. Kh2 {[%emt 0:00:28]} Bb7 {[%emt 0:02:39]} 35. Bg2 {[%emt 0:01:37]} Bc8 {[%emt 0:02:08]} 36. Bh3 {[%emt 0:00:29]} Bb7 {[%emt 0:00:34]} 37. Bg2 {[%emt 0:00:12]} f6 {[%emt 0:02:16]} 38. g4 {[%emt 0:05:51]} g5 {[%emt 0:00:50]} 39. hxg5 {[%emt 0:01:20]} hxg5 {[%emt 0:00:02]} 40. a5 {[%emt 0:00:00]} bxa5 {[%emt 0:00:00]} 41. Nc4 {[%emt 0:13:57]} Nxb3 {[%emt 0:09:12]} 42. Nd6 {[%emt 0:03:39]} Nc5 {[%emt 0:04:31]} 43. Qa3 {[%emt 0:06:55]} Bc6 {[%emt 0:03:22]} 44. Qxa5 {[%emt 0:00:26]} Qxf2 {[%emt 0:01:34]} 45. Qd8 {[%emt 0:06:28]} Qh4+ {[%emt 0:03:54]} 1/2-1/2

[Event "EYCC Girls-U12 2019"]
[Site "Bratislava"]
[Date "2019.08.08"]
[Round "7.6"]
[White "Verheij, Dana"]
[Black "Putar, Lara"]
[Result "1-0"]
[ECO "B07"]
[WhiteElo "1497"]
[BlackElo "1608"]
[Annotator "NA"]
[PlyCount "63"]
[EventDate "2019.08.02"]
[EventType "swiss"]
[EventCountry "SVK"]
[SourceTitle "playchess.com"]
[Source "ChessBase"]
[SourceQuality "1"]
[TimeControl "40/5400+30:1800+30"]

1. e4 {[%emt 0:00:00]} d6 {[%emt 0:00:00]} 2. d4 {[%emt 0:00:00]} Nf6 {[%emt 0:00:00]} 3. Nc3 {[%emt 0:00:22]} g6 {[%emt 0:00:05]} 4. Bf4 {[%emt 0:03:12]} Bg7 {[%emt 0:01:08]} 5. Nf3 {[%emt 0:01:18]} O-O {[%emt 0:01:16]} 6. Qd2 {[%emt 0:00:49]} Re8 {[%emt 0:02:17]} 7. O-O-O {[%emt 0:01:15]} a5 {[%emt 0:01:35]} 8. Kb1 {[%emt 0:03:25]} Na6 {[%emt 0:02:04]} 9. Bd3 Bd7 {[%emt 0:03:34]} 10. e5 {[%emt 0:05:37]} dxe5 {[%emt 0:04:17]} 11. dxe5 {[%emt 0:00:08]} Nh5 {[%emt 0:01:28]} 12. Bh6 {[%emt 0:02:23]} Bc6 {[%emt 0:02:28]} 13. Bxg7 {[%emt 0:02:08]} Nxg7 {[%emt 0:00:30]} 14. Qh6 {[%emt 0:01:35]} Bxf3 {[%emt 0:09:47]} 15. Bxg6 {[%emt 0:01:32]} fxg6 {[%emt 0:08:18]} 16. Rxd8 {[%emt 0:00:11]} Raxd8 {[%emt 0:00:20]} 17. gxf3 {[%emt 0:00:23]} Nf5 {[%emt 0:01:22]} 18. Qg5 {[%emt 0:02:08]} Nc5 {[%emt 0:02:25]} 19. Rg1 {[%emt 0:04:27]} Kf7 {[%emt 0:02:55]} 20. Ne4 {[%emt 0:07:26]} Ne6 {[%emt 0:02:14]} 21. Qc1 {[%emt 0:01:21]} Ned4 {[%emt 0:01:27]} 22. Qf1 {[%emt 0:05:46]} Nxf3 {[%emt 0:02:31]} 23. Ng5+ {[%emt 0:00:28]} Nxg5 {[%emt 0:00:07]} 24. Rxg5 {[%emt 0:00:15]} Rd2 {[%emt 0:00:55]} 25. a3 {[%emt 0:02:22]} c6 {[%emt 0:03:51]} 26. Qh3 {[%emt 0:02:35]} h6 {[%emt 0:01:55]} 27. e6+ {[%emt 0:07:50]} Kxe6 {[%emt 0:09:37]} 28. Rxg6+ {[%emt 0:00:31]} Ke5 {[%emt 0:00:39]} 29. f4+ {[%emt 0:08:54]} Ke4 {[%emt 0:03:10]} 30. Re6+ {[%emt 0:01:08]} Kxf4 {[%emt 0:02:30]} 31. Qf1+ {[%emt 0:00:15]} Kg5 {[%emt 0:04:02]} 32. Qc1 1-0

[Event "EYCC Girls-U12 2019"]
[Site "Bratislava"]
[Date "2019.08.08"]
[Round "7.7"]
[White "Gasimova, Samra"]
[Black "Zhou, Lepu Coco"]
[Result "0-1"]
[ECO "A57"]
[WhiteElo "1695"]
[BlackElo "1861"]
[Annotator "NA"]
[PlyCount "108"]
[EventDate "2019.08.02"]
[EventType "swiss"]
[EventCountry "SVK"]
[SourceTitle "playchess.com"]
[Source "ChessBase"]
[SourceQuality "1"]
[TimeControl "40/5400+30:1800+30"]

1. d4 {[%emt 0:00:00]} Nf6 {[%emt 0:00:00]} 2. c4 {[%emt 0:00:00]} c5 {[%emt 0:00:00]} 3. d5 {[%emt 0:00:00]} b5 {[%emt 0:00:00]} 4. cxb5 {[%emt 0:00:00]} a6 {[%emt 0:00:00]} 5. b6 {[%emt 0:00:00]} g6 {[%emt 0:00:07]} 6. Nc3 {[%emt 0:00:31]} Bg7 {[%emt 0:00:31]} 7. Nf3 {[%emt 0:00:44]} O-O {[%emt 0:00:53]} 8. e4 {[%emt 0:00:18]} d6 {[%emt 0:00:30]} 9. Nd2 {[%emt 0:02:24]} Nbd7 {[%emt 0:01:36]} 10. Nc4 {[%emt 0:02:14]} Nxb6 {[%emt 0:00:42]} 11. Ne3 {[%emt 0:00:42]} Bd7 {[%emt 0:04:58]} 12. Be2 {[%emt 0:04:25]} Bb5 {[%emt 0:00:52]} 13. O-O {[%emt 0:02:55]} Bxe2 {[%emt 0:01:17]} 14. Qxe2 {[%emt 0:00:10]} Qc7 {[%emt 0:01:02]} 15. Rd1 {[%emt 0:06:32]} Rfb8 {[%emt 0:03:31]} 16. f4 {[%emt 0:04:24]} Nbd7 {[%emt 0:01:54]} 17. Nc4 {[%emt 0:03:22]} Ne8 {[%emt 0:04:50]} 18. Be3 {[%emt 0:11:11]} a5 {[%emt 0:01:40]} 19. a4 {[%emt 0:05:21]} Qb7 {[%emt 0:03:42]} 20. e5 {[%emt 0:17:34]} Nb6 {[%emt 0:06:32]} 21. Na3 {[%emt 0:04:32]} Nc7 {[%emt 0:04:48]} 22. Qd3 {[%emt 0:05:56]} Na6 {[%emt 0:06:29]} 23. exd6 {[%emt 0:05:28]} Nb4 {[%emt 0:00:51]} 24. Qd2 {[%emt 0:05:52]} exd6 {[%emt 0:00:21]} 25. Nab5 {[%emt 0:00:40]} Nc4 {[%emt 0:02:06]} 26. Qe2 {[%emt 0:00:17]} Nxe3 {[%emt 0:00:32]} 27. Qxe3 {[%emt 0:00:12]} Nc2 {[%emt 0:00:20]} 28. Qd3 {[%emt 0:00:20]} Nxa1 {[%emt 0:00:13]} 29. Rxa1 {[%emt 0:00:07]} Qe7 {[%emt 0:02:40]} 30. Ne4 {[%emt 0:02:39]} Bxb2 {[%emt 0:01:26]} 31. Ra2 {[%emt 0:00:10]} Bd4+ {[%emt 0:00:20]} 32. Kf1 {[%emt 0:01:37]} Rb6 {[%emt 0:03:03]} 33. Re2 {[%emt 0:00:39]} Qb7 {[%emt 0:03:53]} 34. Nxd4 {[%emt 0:01:54]} cxd4 {[%emt 0:00:43]} 35. Nf6+ {[%emt 0:00:10]} Kg7 {[%emt 0:04:16]} 36. g4 {[%emt 0:04:21]} Rb4 {[%emt 0:02:51]} 37. g5 {[%emt 0:01:01]} Qc8 {[%emt 0:02:07]} 38. Qg3 {[%emt 0:04:02]} d3 {[%emt 0:04:28]} 39. Qh4 {[%emt 0:01:25]} Rxf4+ {[%emt 0:02:25]} 40. Qxf4 {[%emt 0:00:00]} dxe2+ {[%emt 0:00:00]} 41. Kxe2 {[%emt 0:00:16]} Qc2+ {[%emt 0:01:34]} 42. Kf3 {[%emt 0:00:42]} Qf5 {[%emt 0:00:11]} 43. Qxf5 {[%emt 0:00:24]} gxf5 {[%emt 0:00:06]} 44. h4 {[%emt 0:01:09]} Rb8 {[%emt 0:01:22]} 45. Kf4 {[%emt 0:00:07]} Rb4+ {[%emt 0:00:12]} 46. Kxf5 {[%emt 0:00:08]} Rxh4 {[%emt 0:00:33]} 47. Ne8+ {[%emt 0:00:08]} Kf8 {[%emt 0:00:33]} 48. Nxd6 {[%emt 0:00:06]} Rxa4 {[%emt 0:00:11]} 49. Nb7 {[%emt 0:00:18]} Ra1 {[%emt 0:01:15]} 50. d6 {[%emt 0:00:54]} Ke8 {[%emt 0:00:23]} 51. Ke5 {[%emt 0:00:46]} Rb1 {[%emt 0:00:54]} 52. Nc5 {[%emt 0:00:59]} Rb5 {[%emt 0:00:08]} 53. Kd5 {[%emt 0:00:11]} Rxc5+ {[%emt 0:00:40]} 54. Kxc5 {[%emt 0:00:05]} Kd7 {[%emt 0:00:04]} 0-1

[Event "EYCC Girls-U12 2019"]
[Site "Bratislava"]
[Date "2019.08.08"]
[Round "7.8"]
[White "Buyuk, Ecrin Efsa"]
[Black "Tran, Alva Ling"]
[Result "1-0"]
[ECO "B40"]
[WhiteElo "1592"]
[BlackElo "1712"]
[Annotator "NA"]
[PlyCount "103"]
[EventDate "2019.08.02"]
[EventType "swiss"]
[EventCountry "SVK"]
[SourceTitle "playchess.com"]
[Source "ChessBase"]
[SourceQuality "1"]
[TimeControl "40/5400+30:1800+30"]

1. e4 {[%emt 0:00:00]} c5 {[%emt 0:00:00]} 2. Nf3 {[%emt 0:00:00]} e6 {[%emt 0:00:00]} 3. g3 {[%emt 0:00:27]} b6 {[%emt 0:00:37]} 4. Bg2 {[%emt 0:01:15]} Bb7 {[%emt 0:00:15]} 5. Nc3 {[%emt 0:02:13]} d6 {[%emt 0:01:31]} 6. O-O {[%emt 0:06:00]} Nf6 {[%emt 0:02:47]} 7. Re1 {[%emt 0:01:55]} Be7 {[%emt 0:02:07]} 8. d4 {[%emt 0:03:05]} Nbd7 {[%emt 0:09:27]} 9. e5 {[%emt 0:23:43]} dxe5 {[%emt 0:11:23]} 10. dxe5 {[%emt 0:00:13]} Nd5 {[%emt 0:00:50]} 11. Ne4 {[%emt 0:03:47]} O-O {[%emt 0:07:06]} 12. a3 {[%emt 0:10:21]} b5 {[%emt 0:14:18]} 13. Bg5 {[%emt 0:13:26]} N7b6 {[%emt 0:13:26]} 14. Nxc5 {[%emt 0:07:36]} Qc7 {[%emt 0:08:45]} 15. Bxe7 {[%emt 0:01:18]} Qxe7 {[%emt 0:00:10]} 16. Nxb7 {[%emt 0:00:42]} Qxb7 {[%emt 0:00:11]} 17. Qd3 {[%emt 0:01:30]} a6 {[%emt 0:05:49]} 18. Ng5 {[%emt 0:02:06]} g6 {[%emt 0:01:15]} 19. Ne4 {[%emt 0:01:03]} Rfd8 {[%emt 0:04:17]} 20. Nf6+ {[%emt 0:03:40]} Kg7 {[%emt 0:00:28]} 21. Qd4 {[%emt 0:01:42]} Rac8 {[%emt 0:03:02]} 22. Qh4 {[%emt 0:02:22]} h6 {[%emt 0:07:15]} 23. c3 {[%emt 0:07:12]} Qe7 {[%emt 0:01:48]} 24. Bxd5 {[%emt 0:01:55]} Nxd5 {[%emt 0:00:27]} 25. Nxd5 {[%emt 0:00:36]} Qxh4 {[%emt 0:00:08]} 26. gxh4 {[%emt 0:00:06]} Rxd5 {[%emt 0:00:57]} 27. Rad1 {[%emt 0:01:50]} Rcd8 {[%emt 0:00:44]} 28. Rxd5 {[%emt 0:00:14]} Rxd5 {[%emt 0:00:14]} 29. Re2 {[%emt 0:00:04]} g5 {[%emt 0:02:17]} 30. h5 {[%emt 0:01:28]} f6 {[%emt 0:01:03]} 31. exf6+ {[%emt 0:00:15]} Kxf6 {[%emt 0:00:09]} 32. h3 {[%emt 0:02:08]} Re5 {[%emt 0:01:34]} 33. Rxe5 {[%emt 0:01:08]} Kxe5 {[%emt 0:00:05]} 34. f3 {[%emt 0:00:07]} a5 {[%emt 0:01:33]} 35. b3 {[%emt 0:01:05]} Kd5 {[%emt 0:00:48]} 36. Kf2 {[%emt 0:00:23]} a4 {[%emt 0:00:19]} 37. c4+ {[%emt 0:01:01]} bxc4 {[%emt 0:00:50]} 38. bxa4 {[%emt 0:00:21]} Kd4 {[%emt 0:00:26]} 39. a5 {[%emt 0:00:15]} c3 {[%emt 0:00:35]} 40. Ke2 {[%emt 0:00:00]} Kc4 {[%emt 0:00:00]} 41. Kd1 {[%emt 0:01:18]} Kb5 {[%emt 0:02:42]} 42. Kc2 {[%emt 0:00:10]} Kxa5 {[%emt 0:00:09]} 43. Kxc3 {[%emt 0:00:03]} Ka4 {[%emt 0:00:19]} 44. Kd4 {[%emt 0:00:31]} Kxa3 {[%emt 0:00:10]} 45. Ke5 {[%emt 0:00:02]} Kb4 {[%emt 0:00:09]} 46. Kxe6 {[%emt 0:00:04]} Kc5 {[%emt 0:01:18]} 47. Kf5 {[%emt 0:00:03]} Kd5 {[%emt 0:00:14]} 48. Kg6 {[%emt 0:00:29]} Ke6 {[%emt 0:00:20]} 49. Kxh6 {[%emt 0:00:08]} Kf6 {[%emt 0:00:10]} 50. Kh7 {[%emt 0:00:03]} Kf7 {[%emt 0:00:11]} 51. h6 {[%emt 0:00:03]} Kf6 {[%emt 0:00:33]} 52. Kg8 {[%emt 0:00:04]} 1-0

[Event "EYCC Girls-U12 2019"]
[Site "Bratislava"]
[Date "2019.08.08"]
[Round "7.9"]
[White "Tsirekidze, Barbare"]
[Black "Denic, Hana"]
[Result "0-1"]
[ECO "A40"]
[WhiteElo "1527"]
[BlackElo "1821"]
[Annotator "NA"]
[PlyCount "120"]
[EventDate "2019.08.02"]
[EventType "swiss"]
[EventCountry "SVK"]
[SourceTitle "playchess.com"]
[Source "ChessBase"]
[SourceQuality "1"]
[TimeControl "40/5400+30:1800+30"]

1. d4 {[%emt 0:00:00]} Nf6 {[%emt 0:00:00]} 2. c4 {[%emt 0:00:00]} e6 {[%emt 0:00:00]} 3. g3 {[%emt 0:00:00]} Bb4+ {[%emt 0:01:22]} 4. Bd2 {[%emt 0:00:37]} Qe7 {[%emt 0:01:14]} 5. Bg2 {[%emt 0:05:35]} O-O {[%emt 0:07:25]} 6. a3 {[%emt 0:04:08]} Bxd2+ {[%emt 0:01:23]} 7. Nxd2 {[%emt 0:00:36]} d6 {[%emt 0:04:31]} 8. Ngf3 {[%emt 0:00:26]} Nc6 {[%emt 0:00:52]} 9. O-O {[%emt 0:01:19]} e5 {[%emt 0:04:10]} 10. d5 {[%emt 0:08:25]} Nb8 {[%emt 0:03:10]} 11. e4 {[%emt 0:01:36]} b6 {[%emt 0:05:56]} 12. b4 {[%emt 0:01:06]} Bg4 {[%emt 0:03:10]} 13. Qc2 {[%emt 0:01:34]} Nbd7 {[%emt 0:04:56]} 14. Nb3 {[%emt 0:04:22]} Bxf3 {[%emt 0:08:29]} 15. Bxf3 {[%emt 0:00:11]} h5 {[%emt 0:01:11]} 16. Rac1 {[%emt 0:02:54]} g6 {[%emt 0:06:02]} 17. c5 {[%emt 0:04:04]} Rfc8 {[%emt 0:09:56]} 18. cxd6 {[%emt 0:03:00]} cxd6 {[%emt 0:05:59]} 19. Qd3 {[%emt 0:01:57]} Nf8 {[%emt 0:03:27]} 20. Qa6 {[%emt 0:02:09]} Qd7 {[%emt 0:00:32]} 21. a4 {[%emt 0:07:44]} Ne8 {[%emt 0:01:58]} 22. Qb5 {[%emt 0:03:46]} Qxb5 {[%emt 0:03:36]} 23. axb5 {[%emt 0:01:08]} Nd7 {[%emt 0:05:03]} 24. Be2 {[%emt 0:02:22]} Ndf6 {[%emt 0:01:48]} 25. f3 {[%emt 0:00:52]} Kf8 {[%emt 0:01:10]} 26. Rc6 {[%emt 0:01:08]} Ke7 {[%emt 0:00:37]} 27. Rfc1 {[%emt 0:01:09]} Kd7 {[%emt 0:00:39]} 28. Kf2 {[%emt 0:01:06]} Ng8 {[%emt 0:00:51]} 29. f4 {[%emt 0:01:40]} Ne7 {[%emt 0:04:14]} 30. Rxc8 {[%emt 0:02:10]} Rxc8 {[%emt 0:00:08]} 31. fxe5 {[%emt 0:01:17]} Rxc1 {[%emt 0:00:44]} 32. Nxc1 {[%emt 0:00:04]} dxe5 {[%emt 0:00:07]} 33. Ke3 {[%emt 0:02:18]} Kd6 {[%emt 0:01:53]} 34. Nb3 {[%emt 0:20:04]} f5 {[%emt 0:03:51]} 35. Nd2 {[%emt 0:03:32]} fxe4 {[%emt 0:04:25]} 36. Nxe4+ {[%emt 0:00:24]} Kxd5 {[%emt 0:01:17]} 37. Nc3+ {[%emt 0:03:26]} Ke6 {[%emt 0:00:56]} 38. Bc4+ {[%emt 0:01:17]} Kf6 {[%emt 0:00:47]} 39. Ne4+ {[%emt 0:00:48]} Kf5 {[%emt 0:00:54]} 40. Bf7 {[%emt 0:00:00]} Nc7 {[%emt 0:00:00]} 41. h4 {[%emt 0:10:56]} Ncd5+ {[%emt 0:04:19]} 42. Kf3 {[%emt 0:00:44]} Nxb4 {[%emt 0:01:58]} 43. Ke3 {[%emt 0:04:58]} a6 {[%emt 0:05:22]} 44. Be8 {[%emt 0:01:42]} Ke6 {[%emt 0:02:39]} 45. Ng5+ {[%emt 0:01:26]} Kd6 {[%emt 0:02:39]} 46. Ne4+ {[%emt 0:01:45]} Kc7 {[%emt 0:02:29]} 47. bxa6 {[%emt 0:01:26]} Nxa6 {[%emt 0:00:11]} 48. Nc3 {[%emt 0:00:38]} Nc5 {[%emt 0:02:09]} 49. Nb5+ {[%emt 0:01:00]} Kd8 {[%emt 0:00:51]} 50. Bf7 {[%emt 0:01:21]} Nf5+ {[%emt 0:03:09]} 51. Kd2 {[%emt 0:01:14]} Ne4+ {[%emt 0:01:05]} 52. Ke1 {[%emt 0:00:44]} Nexg3 {[%emt 0:00:30]} 53. Bxg6 Nxh4 {[%emt 0:00:11]} 54. Bh7 {[%emt 0:01:26]} Nhf5 {[%emt 0:01:05]} 55. Kf2 {[%emt 0:00:26]} e4 {[%emt 0:00:45]} 56. Nc3 {[%emt 0:00:46]} e3+ {[%emt 0:01:08]} 57. Kf3 {[%emt 0:00:55]} h4 {[%emt 0:02:23]} 58. Kg4 {[%emt 0:03:33]} b5 {[%emt 0:02:14]} 59. Ne2 {[%emt 0:03:29]} Nxe2 {[%emt 0:02:27]} 60. Bxf5 {[%emt 0:00:06]} Nd4 {[%emt 0:00:16]} 0-1